[Event "Early-Titled-Tuesday-Blitz-May-07-2024"]
[Site "Chess.com"]
[Date "2024.05.07"]
[Round "8"]
[White "Nitzan_Steinberg"]
[Black "Oleksandr_Bortnyk"]
[Result "1/2-1/2"]
[WhiteElo "2938"]
[BlackElo "3061"]
[TimeControl "180+1"]
[EndTime "9:35:47 PDT"]
[Termination "Game drawn by repetition"]

1. e4 {[%clk 0:03:00.9]} 1... Nf6 {[%clk 0:03:00]} 2. e5 {[%clk 0:03:00.9]} 2...
Nd5 {[%clk 0:03:00.4]} 3. d4 {[%clk 0:03:01.5]} 3... d6 {[%clk 0:03:01.1]} 4.
Nf3 {[%clk 0:03:01.9]} 4... dxe5 {[%clk 0:03:01.6]} 5. Nxe5 {[%clk 0:03:02.4]}
5... c6 {[%clk 0:03:02.3]} 6. Bc4 {[%clk 0:03:02.5]} 6... Nd7 {[%clk 0:03:02.2]}
7. Nf3 {[%clk 0:03:02.8]} 7... N7f6 {[%clk 0:03:02.6]} 8. O-O {[%clk 0:03:02.6]}
8... Bg4 {[%clk 0:03:02.8]} 9. h3 {[%clk 0:03:01.3]} 9... Bxf3 {[%clk 0:03:03]}
10. Qxf3 {[%clk 0:03:01.4]} 10... Nb6 {[%clk 0:03:03.9]} 11. Qd3 {[%clk
0:02:54.2]} 11... Nxc4 {[%clk 0:03:03.2]} 12. Qxc4 {[%clk 0:02:55.1]} 12... e6
{[%clk 0:02:55.7]} 13. Rd1 {[%clk 0:02:54.5]} 13... Be7 {[%clk 0:02:54.2]} 14.
Qe2 {[%clk 0:02:54.5]} 14... O-O {[%clk 0:02:54]} 15. c4 {[%clk 0:02:50.6]}
15... Qa5 {[%clk 0:02:51.3]} 16. Nc3 {[%clk 0:02:49.9]} 16... Rfd8 {[%clk
0:02:49.1]} 17. Be3 {[%clk 0:02:48.2]} 17... Rd7 {[%clk 0:02:48.5]} 18. a3
{[%clk 0:02:43]} 18... Rad8 {[%clk 0:02:47.9]} 19. Rd2 {[%clk 0:02:42.6]} 19...
Bb4 {[%clk 0:02:44]} 20. Rc2 {[%clk 0:02:32.8]} 20... Bxc3 {[%clk 0:02:43.1]}
21. Rxc3 {[%clk 0:02:33.1]} 21... e5 {[%clk 0:02:37.7]} 22. dxe5 {[%clk
0:02:05.8]} 22... Qxe5 {[%clk 0:02:38.6]} 23. Re1 {[%clk 0:01:59.1]} 23... b6
{[%clk 0:02:27.9]} 24. Rc2 {[%clk 0:01:43.5]} 24... Qf5 {[%clk 0:02:27]} 25. Rd2
{[%clk 0:01:36.5]} 25... h6 {[%clk 0:02:22.7]} 26. Rxd7 {[%clk 0:01:31.9]} 26...
Rxd7 {[%clk 0:02:23.6]} 27. Bd2 {[%clk 0:01:30.4]} 27... Rd4 {[%clk 0:02:02.1]}
28. Bc3 {[%clk 0:01:09.3]} 28... Re4 {[%clk 0:02:02]} 29. Qf1 {[%clk 0:01:07.1]}
29... Rxe1 {[%clk 0:02:00.1]} 30. Qxe1 {[%clk 0:01:08]} 30... Ne4 {[%clk
0:02:00]} 31. Qe3 {[%clk 0:00:50]} 31... c5 {[%clk 0:01:57.9]} 32. b3 {[%clk
0:00:32]} 32... a5 {[%clk 0:01:36.9]} 33. a4 {[%clk 0:00:26.9]} 33... Ng5 {[%clk
0:01:26.5]} 34. Qe5 {[%clk 0:00:22.8]} 34... Qg6 {[%clk 0:01:23.5]} 35. Kh2
{[%clk 0:00:21.5]} 35... Ne4 {[%clk 0:01:02.1]} 36. Be1 {[%clk 0:00:14]} 36...
Nd6 {[%clk 0:00:56.1]} 37. f3 {[%clk 0:00:12.7]} 37... Nf5 {[%clk 0:00:54.3]}
38. Bf2 {[%clk 0:00:08.9]} 38... h5 {[%clk 0:00:49.7]} 39. h4 {[%clk 0:00:08.5]}
39... Nd6 {[%clk 0:00:46.9]} 40. Bg3 {[%clk 0:00:07.4]} 40... Nf5 {[%clk
0:00:47]} 41. Bf2 {[%clk 0:00:08]} 41... Kh7 {[%clk 0:00:44.7]} 42. Qe4 {[%clk
0:00:08]} 42... Qd6+ {[%clk 0:00:43.7]} 43. Kh3 {[%clk 0:00:06.5]} 43... g6
{[%clk 0:00:43.2]} 44. g4 {[%clk 0:00:06.2]} 44... Nh6 {[%clk 0:00:35.2]} 45.
gxh5 {[%clk 0:00:03.5]} 45... Nf5 {[%clk 0:00:27.5]} 46. hxg6+ {[%clk
0:00:03.9]} 46... fxg6 {[%clk 0:00:28.4]} 47. h5 {[%clk 0:00:03.6]} 47... Qd1
{[%clk 0:00:14.1]} 48. hxg6+ {[%clk 0:00:03.9]} 48... Kxg6 {[%clk 0:00:14.9]}
49. Qe6+ {[%clk 0:00:04.2]} 49... Kg5 {[%clk 0:00:13.5]} 50. Be3+ {[%clk
0:00:04.7]} 50... Nxe3 {[%clk 0:00:13.5]} 51. Qxe3+ {[%clk 0:00:05.6]} 51... Kf5
{[%clk 0:00:12.4]} 52. Qe4+ {[%clk 0:00:05.7]} 52... Kf6 {[%clk 0:00:12.9]} 53.
Qc6+ {[%clk 0:00:06]} 53... Ke5 {[%clk 0:00:11.5]} 54. Qe4+ {[%clk 0:00:05.6]}
54... Kf6 {[%clk 0:00:12]} 55. Qe3 {[%clk 0:00:05.3]} 55... Kf5 {[%clk
0:00:09.6]} 56. Kg3 {[%clk 0:00:05.2]} 56... Qh1 {[%clk 0:00:04.4]} 57. Qe4+
{[%clk 0:00:05.2]} 57... Kf6 {[%clk 0:00:04.9]} 58. Qc6+ {[%clk 0:00:05.5]}
58... Kf5 {[%clk 0:00:05]} 59. Qd5+ {[%clk 0:00:05.8]} 59... Kf6 {[%clk
0:00:05.6]} 60. Qd8+ {[%clk 0:00:05.1]} 60... Kf5 {[%clk 0:00:05]} 61. Qc8+
{[%clk 0:00:05]} 61... Kf6 {[%clk 0:00:04.7]} 62. Qf8+ {[%clk 0:00:04.7]} 62...
Kg6 {[%clk 0:00:04.1]} 63. Qg8+ {[%clk 0:00:05]} 63... Kf6 {[%clk 0:00:03.4]}
64. Qd8+ {[%clk 0:00:05.3]} 64... Kf5 {[%clk 0:00:03.4]} 65. Qd3+ {[%clk
0:00:05.3]} 65... Kf6 {[%clk 0:00:03.7]} 66. Qd6+ {[%clk 0:00:04.6]} 66... Kf5
{[%clk 0:00:04.3]} 67. Qd5+ {[%clk 0:00:04.9]} 67... Kf6 {[%clk 0:00:05]} 68.
Qc6+ {[%clk 0:00:05.5]} 68... Kf5 {[%clk 0:00:05.4]} 69. Qd5+ {[%clk 0:00:05.2]}
1/2-1/2

[Event "Early-Titled-Tuesday-Blitz-May-07-2024"]
[Site "Chess.com"]
[Date "2024.05.07"]
[Round "8"]
[White "Casablanca"]
[Black "Iball95"]
[Result "1/2-1/2"]
[WhiteElo "2725"]
[BlackElo "2911"]
[TimeControl "180+1"]
[EndTime "9:35:52 PDT"]
[Termination "Game drawn - insufficient material"]

1. d4 {[%clk 0:03:00.9]} 1... d5 {[%clk 0:02:59.5]} 2. c4 {[%clk 0:03:00.9]}
2... e6 {[%clk 0:02:58.8]} 3. Nf3 {[%clk 0:03:00.6]} 3... Nf6 {[%clk 0:02:57.1]}
4. g3 {[%clk 0:02:57.7]} 4... c5 {[%clk 0:02:56.9]} 5. cxd5 {[%clk 0:02:55.5]}
5... exd5 {[%clk 0:02:57.8]} 6. Bg2 {[%clk 0:02:55.9]} 6... Nc6 {[%clk
0:02:57.9]} 7. O-O {[%clk 0:02:55.8]} 7... Be7 {[%clk 0:02:57.6]} 8. Nc3 {[%clk
0:02:55.8]} 8... O-O {[%clk 0:02:57.9]} 9. Bf4 {[%clk 0:02:55.5]} 9... c4 {[%clk
0:02:56.7]} 10. Ne5 {[%clk 0:02:55.2]} 10... Be6 {[%clk 0:02:47.8]} 11. Qd2
{[%clk 0:02:55]} 11... Rc8 {[%clk 0:02:48.1]} 12. Bg5 {[%clk 0:02:51.3]} 12...
h6 {[%clk 0:02:46.9]} 13. Bxf6 {[%clk 0:02:51.2]} 13... Bxf6 {[%clk 0:02:47.8]}
14. f4 {[%clk 0:02:51.4]} 14... Ne7 {[%clk 0:02:46.7]} 15. e3 {[%clk 0:02:43.7]}
15... a6 {[%clk 0:02:38.6]} 16. a4 {[%clk 0:02:42.8]} 16... Re8 {[%clk
0:02:32.5]} 17. h3 {[%clk 0:02:35.8]} 17... Rb8 {[%clk 0:02:24.2]} 18. a5 {[%clk
0:02:27.6]} 18... b5 {[%clk 0:02:16.8]} 19. axb6 {[%clk 0:02:27.3]} 19... Qxb6
{[%clk 0:02:17.3]} 20. Ra2 {[%clk 0:02:27.2]} 20... Red8 {[%clk 0:01:32.1]} 21.
Rfa1 {[%clk 0:02:27]} 21... a5 {[%clk 0:01:29.1]} 22. Na4 {[%clk 0:02:25]} 22...
Qb4 {[%clk 0:01:27.6]} 23. Nc3 {[%clk 0:02:20.2]} 23... Rb6 {[%clk 0:01:18.9]}
24. g4 {[%clk 0:02:19.5]} 24... g6 {[%clk 0:01:11.8]} 25. Bf3 {[%clk 0:01:53.3]}
25... Rdb8 {[%clk 0:00:49.7]} 26. Qg2 {[%clk 0:01:53.2]} 26... Qd6 {[%clk
0:00:48.9]} 27. Rd1 {[%clk 0:00:52]} 27... Rb3 {[%clk 0:00:44.6]} 28. Rd2 {[%clk
0:00:50.6]} 28... Qb4 {[%clk 0:00:30.9]} 29. Ra4 {[%clk 0:00:49.4]} 29... Qb6
{[%clk 0:00:29.8]} 30. Ra2 {[%clk 0:00:47.7]} 30... Qb4 {[%clk 0:00:29.3]} 31.
Ra4 {[%clk 0:00:47.2]} 31... Qb6 {[%clk 0:00:29.5]} 32. Ra2 {[%clk 0:00:47.9]}
32... Kh7 {[%clk 0:00:23.8]} 33. Kh2 {[%clk 0:00:45.2]} 33... Qb4 {[%clk
0:00:18.9]} 34. Ra4 {[%clk 0:00:44.4]} 34... Qb6 {[%clk 0:00:19.3]} 35. Ra2
{[%clk 0:00:45]} 35... Qc7 {[%clk 0:00:15.2]} 36. Re2 {[%clk 0:00:44.8]} 36...
g5 {[%clk 0:00:14.9]} 37. Nxd5 {[%clk 0:00:43.6]} 37... Nxd5 {[%clk 0:00:14.9]}
38. Bxd5 {[%clk 0:00:44.5]} 38... gxf4 {[%clk 0:00:12.9]} 39. Qe4+ {[%clk
0:00:42.1]} 39... Kh8 {[%clk 0:00:11.7]} 40. Bxe6 {[%clk 0:00:42.3]} 40... Bxe5
{[%clk 0:00:09.1]} 41. Qxe5+ {[%clk 0:00:34.1]} 41... Qxe5 {[%clk 0:00:09.2]}
42. dxe5 {[%clk 0:00:35]} 42... f3 {[%clk 0:00:09.3]} 43. Rf2 {[%clk 0:00:35.5]}
43... fxe6 {[%clk 0:00:09.7]} 44. Rxa5 {[%clk 0:00:29.7]} 44... Rxb2 {[%clk
0:00:07.7]} 45. Kg3 {[%clk 0:00:28.3]} 45... Rxf2 {[%clk 0:00:07.4]} 46. Kxf2
{[%clk 0:00:29.2]} 46... Rc8 {[%clk 0:00:07.6]} 47. Ra2 {[%clk 0:00:28.7]} 47...
Kg7 {[%clk 0:00:07.5]} 48. Kxf3 {[%clk 0:00:29.1]} 48... Kg6 {[%clk 0:00:08.4]}
49. Ke4 {[%clk 0:00:29.8]} 49... Kg5 {[%clk 0:00:08.4]} 50. Kf3 {[%clk
0:00:18.6]} 50... Kh4 {[%clk 0:00:08.4]} 51. Ra1 {[%clk 0:00:11.9]} 51... c3
{[%clk 0:00:08.5]} 52. Rc1 {[%clk 0:00:08.7]} 52... c2 {[%clk 0:00:08.9]} 53.
Kf4 {[%clk 0:00:07]} 53... Kxh3 {[%clk 0:00:07.3]} 54. g5 {[%clk 0:00:07.5]}
54... hxg5+ {[%clk 0:00:03.6]} 55. Kxg5 {[%clk 0:00:07.8]} 55... Kg3 {[%clk
0:00:04.3]} 56. Kf6 {[%clk 0:00:07.6]} 56... Rc6 {[%clk 0:00:04.5]} 57. Rxc2
{[%clk 0:00:04.7]} 57... Rxc2 {[%clk 0:00:04.1]} 58. Kxe6 {[%clk 0:00:05.6]}
58... Kg4 {[%clk 0:00:04.7]} 59. Kd7 {[%clk 0:00:05.8]} 59... Kf5 {[%clk
0:00:04.3]} 60. e6 {[%clk 0:00:06.7]} 60... Rd2+ {[%clk 0:00:04.8]} 61. Ke7
{[%clk 0:00:06.9]} 61... Rd3 {[%clk 0:00:03]} 62. Kf7 {[%clk 0:00:07.3]} 62...
Rxe3 {[%clk 0:00:03]} 63. e7 {[%clk 0:00:07.9]} 63... Re4 {[%clk 0:00:01.7]} 64.
e8=Q {[%clk 0:00:07.6]} 64... Rxe8 {[%clk 0:00:02.6]} 65. Kxe8 {[%clk 0:00:08]}
1/2-1/2

[Event "Early-Titled-Tuesday-Blitz-May-07-2024"]
[Site "Chess.com"]
[Date "2024.05.07"]
[Round "8"]
[White "lluiss"]
[Black "jinxy2009"]
[Result "1/2-1/2"]
[WhiteElo "2221"]
[BlackElo "2266"]
[TimeControl "180+1"]
[EndTime "9:35:52 PDT"]
[Termination "Game drawn by repetition"]

1. Nf3 {[%clk 0:03:00.9]} 1... Nf6 {[%clk 0:02:56.2]} 2. d4 {[%clk 0:03:00]}
2... g6 {[%clk 0:02:56.2]} 3. g3 {[%clk 0:02:59]} 3... Bg7 {[%clk 0:02:56.5]} 4.
Bg2 {[%clk 0:02:59.5]} 4... O-O {[%clk 0:02:56.9]} 5. O-O {[%clk 0:02:59.5]}
5... d5 {[%clk 0:02:51.4]} 6. c4 {[%clk 0:02:58.5]} 6... dxc4 {[%clk 0:02:49.7]}
7. Na3 {[%clk 0:02:57.9]} 7... c5 {[%clk 0:02:47.1]} 8. Nxc4 {[%clk 0:02:55.1]}
8... Nc6 {[%clk 0:02:44]} 9. dxc5 {[%clk 0:02:44.1]} 9... Be6 {[%clk 0:02:32.7]}
10. Nce5 {[%clk 0:02:25.8]} 10... Qc7 {[%clk 0:02:16.6]} 11. Nxc6 {[%clk
0:02:17.8]} 11... Qxc6 {[%clk 0:02:06.1]} 12. Be3 {[%clk 0:02:15.2]} 12... Rfd8
{[%clk 0:02:02.7]} 13. Nd4 {[%clk 0:02:01.4]} 13... Qa6 {[%clk 0:01:47.3]} 14.
Qc2 {[%clk 0:01:50.7]} 14... Bd5 {[%clk 0:01:44.4]} 15. c6 {[%clk 0:01:16.9]}
15... Bxg2 {[%clk 0:01:33.7]} 16. Kxg2 {[%clk 0:01:16.7]} 16... Rac8 {[%clk
0:01:30.9]} 17. Qb3 {[%clk 0:01:07.4]} 17... bxc6 {[%clk 0:01:25.8]} 18. Nf3
{[%clk 0:00:36.6]} 18... Qa5 {[%clk 0:01:15.6]} 19. Rfd1 {[%clk 0:00:30.7]}
19... Nd5 {[%clk 0:01:14.3]} 20. Bd4 {[%clk 0:00:28.9]} 20... Rb8 {[%clk
0:01:13.8]} 21. Qc4 {[%clk 0:00:19.7]} 21... Qb5 {[%clk 0:01:11.1]} 22. Qxb5
{[%clk 0:00:16.4]} 22... cxb5 {[%clk 0:01:07.1]} 23. Bxg7 {[%clk 0:00:16.2]}
23... Kxg7 {[%clk 0:01:07.1]} 24. Rd2 {[%clk 0:00:13.6]} 24... e6 {[%clk
0:01:03.5]} 25. Rad1 {[%clk 0:00:13.3]} 25... Rdc8 {[%clk 0:01:04]} 26. Ne5
{[%clk 0:00:11.6]} 26... Nb6 {[%clk 0:01:04.5]} 27. b3 {[%clk 0:00:10.9]} 27...
Rc3 {[%clk 0:01:01]} 28. Nd7 {[%clk 0:00:10.5]} 28... Nxd7 {[%clk 0:00:59.9]}
29. Rxd7 {[%clk 0:00:11.4]} 29... a5 {[%clk 0:00:47.4]} 30. Ra7 {[%clk
0:00:11.5]} 30... Rc2 {[%clk 0:00:45.1]} 31. Rdd7 {[%clk 0:00:10.1]} 31... Rf8
{[%clk 0:00:44.8]} 32. Rxa5 {[%clk 0:00:10.3]} 32... Rxe2 {[%clk 0:00:44.3]} 33.
Rxb5 {[%clk 0:00:08.7]} 33... Rxa2 {[%clk 0:00:43.6]} 34. Rbb7 {[%clk
0:00:09.6]} 34... Rb2 {[%clk 0:00:43.6]} 35. b4 {[%clk 0:00:09.8]} 35... Kf6
{[%clk 0:00:39.2]} 36. b5 {[%clk 0:00:09]} 36... h5 {[%clk 0:00:34.6]} 37. h4
{[%clk 0:00:08.5]} 37... Ke5 {[%clk 0:00:34.4]} 38. Rxf7 {[%clk 0:00:07.3]}
38... Rxf7 {[%clk 0:00:34.8]} 39. Rxf7 {[%clk 0:00:07.1]} 39... Rxb5 {[%clk
0:00:35]} 40. Rg7 {[%clk 0:00:06.9]} 40... Kf6 {[%clk 0:00:35]} 41. Rg8 {[%clk
0:00:07.2]} 41... Rb3 {[%clk 0:00:33.8]} 42. Rf8+ {[%clk 0:00:07.3]} 42... Kg7
{[%clk 0:00:33.7]} 43. Rf3 {[%clk 0:00:07.9]} 43... Rb4 {[%clk 0:00:32.5]} 44.
Re3 {[%clk 0:00:07.7]} 44... Kf7 {[%clk 0:00:32.2]} 45. Rf3+ {[%clk 0:00:08]}
45... Ke7 {[%clk 0:00:32.6]} 46. Rd3 {[%clk 0:00:08.2]} 46... e5 {[%clk
0:00:31]} 47. Re3 {[%clk 0:00:08.3]} 47... Kf6 {[%clk 0:00:30.8]} 48. Rf3+
{[%clk 0:00:08]} 48... Ke6 {[%clk 0:00:31.1]} 49. Re3 {[%clk 0:00:08.5]} 49...
Rb2 {[%clk 0:00:29.6]} 50. Ra3 {[%clk 0:00:07.2]} 50... Rc2 {[%clk 0:00:27.5]}
51. Re3 {[%clk 0:00:07]} 51... Kf5 {[%clk 0:00:27.3]} 52. Kf3 {[%clk 0:00:07]}
52... Rc4 {[%clk 0:00:25.4]} 53. Ra3 {[%clk 0:00:06.5]} 53... e4+ {[%clk
0:00:25.3]} 54. Kg2 {[%clk 0:00:06.6]} 54... Rc5 {[%clk 0:00:25.3]} 55. Re3
{[%clk 0:00:06.3]} 55... Rd5 {[%clk 0:00:25.2]} 56. Ra3 {[%clk 0:00:06]} 56...
Rd3 {[%clk 0:00:23.4]} 57. Ra5+ {[%clk 0:00:05.8]} 57... Kf6 {[%clk 0:00:23.4]}
58. Ra6+ {[%clk 0:00:06.1]} 58... Kf5 {[%clk 0:00:21.7]} 59. Ra5+ {[%clk
0:00:06]} 59... Kf6 {[%clk 0:00:11.5]} 60. Ra6+ {[%clk 0:00:06.2]} 60... Kg7
{[%clk 0:00:11.8]} 61. Re6 {[%clk 0:00:06]} 61... Rd4 {[%clk 0:00:11.6]} 62. Kf1
{[%clk 0:00:06.3]} 62... Kf7 {[%clk 0:00:12]} 63. Re5 {[%clk 0:00:06]} 63... Ra4
{[%clk 0:00:11.9]} 64. Ke2 {[%clk 0:00:05.5]} 64... Kf6 {[%clk 0:00:12.4]} 65.
Re8 {[%clk 0:00:04.9]} 65... Kf5 {[%clk 0:00:09.5]} 66. Rf8+ {[%clk 0:00:04.5]}
66... Ke6 {[%clk 0:00:09.8]} 67. Re8+ {[%clk 0:00:04.5]} 67... Kf7 {[%clk
0:00:10.1]} 68. Re5 {[%clk 0:00:04.5]} 68... Kf6 {[%clk 0:00:10.5]} 69. Re8
{[%clk 0:00:04.6]} 69... Kf7 {[%clk 0:00:07.7]} 70. Re5 {[%clk 0:00:04.4]}
1/2-1/2

[Event "Early-Titled-Tuesday-Blitz-May-07-2024"]
[Site "Chess.com"]
[Date "2024.05.07"]
[Round "8"]
[White "bazar-wokzal"]
[Black "Rodalquilar"]
[Result "0-1"]
[WhiteElo "2588"]
[BlackElo "2740"]
[TimeControl "180+1"]
[EndTime "9:35:54 PDT"]
[Termination "Rodalquilar won on time"]

1. e4 {[%clk 0:02:40.8]} 1... d5 {[%clk 0:03:00.3]} 2. exd5 {[%clk 0:02:40.2]}
2... Qxd5 {[%clk 0:03:01.2]} 3. Nc3 {[%clk 0:02:39.2]} 3... Qa5 {[%clk
0:03:01.1]} 4. Nf3 {[%clk 0:02:39.4]} 4... Nf6 {[%clk 0:03:01.4]} 5. d4 {[%clk
0:02:39]} 5... Bf5 {[%clk 0:03:01.2]} 6. Bd2 {[%clk 0:02:35.4]} 6... e6 {[%clk
0:03:01.2]} 7. Nb5 {[%clk 0:02:32.1]} 7... Qb6 {[%clk 0:03:00.4]} 8. c4 {[%clk
0:02:31.9]} 8... c6 {[%clk 0:03:00.3]} 9. c5 {[%clk 0:02:29.8]} 9... Qd8 {[%clk
0:03:00.4]} 10. Nc3 {[%clk 0:02:29]} 10... h6 {[%clk 0:02:54.2]} 11. Qb3 {[%clk
0:02:28.4]} 11... Qc8 {[%clk 0:02:50.2]} 12. Be2 {[%clk 0:02:23.6]} 12... Be7
{[%clk 0:02:49.9]} 13. O-O {[%clk 0:02:23.3]} 13... O-O {[%clk 0:02:50.2]} 14.
Rfe1 {[%clk 0:02:21.4]} 14... Nbd7 {[%clk 0:02:50.3]} 15. Bf4 {[%clk 0:02:16.4]}
15... b6 {[%clk 0:02:47.3]} 16. cxb6 {[%clk 0:02:14.2]} 16... axb6 {[%clk
0:02:48.2]} 17. Rac1 {[%clk 0:02:13.1]} 17... Qb7 {[%clk 0:02:48.6]} 18. h3
{[%clk 0:02:03.3]} 18... Rfc8 {[%clk 0:02:40.6]} 19. Ne5 {[%clk 0:02:02.5]}
19... Nxe5 {[%clk 0:02:40.3]} 20. Bxe5 {[%clk 0:01:58.2]} 20... Nd5 {[%clk
0:02:38.3]} 21. Bf3 {[%clk 0:01:57.2]} 21... Qa6 {[%clk 0:02:34.2]} 22. a3
{[%clk 0:01:52]} 22... Bg5 {[%clk 0:02:32.6]} 23. Rcd1 {[%clk 0:01:48.5]} 23...
Qa5 {[%clk 0:02:20.2]} 24. Ne4 {[%clk 0:01:46]} 24... Be7 {[%clk 0:01:57.3]} 25.
Nd6 {[%clk 0:01:45.5]} 25... Bxd6 {[%clk 0:01:57.7]} 26. Bxd6 {[%clk 0:01:45.2]}
26... Qa4 {[%clk 0:01:57.7]} 27. Qxa4 {[%clk 0:01:42.6]} 27... Rxa4 {[%clk
0:01:57.4]} 28. Be5 {[%clk 0:01:37.5]} 28... Rc4 {[%clk 0:01:42.2]} 29. Rc1
{[%clk 0:01:36.5]} 29... b5 {[%clk 0:01:35.5]} 30. b3 {[%clk 0:01:32.1]} 30...
Rc2 {[%clk 0:01:27.6]} 31. a4 {[%clk 0:01:21.6]} 31... b4 {[%clk 0:01:20.3]} 32.
g4 {[%clk 0:01:11.1]} 32... Bg6 {[%clk 0:01:12.4]} 33. Bd6 {[%clk 0:01:07]}
33... Rc3 {[%clk 0:00:57.6]} 34. Kg2 {[%clk 0:00:49.5]} 34... Rxb3 {[%clk
0:00:53]} 35. Bxd5 {[%clk 0:00:48.5]} 35... exd5 {[%clk 0:00:53]} 36. a5 {[%clk
0:00:46.9]} 36... Be4+ {[%clk 0:00:52.5]} 37. Kh2 {[%clk 0:00:44.6]} 37... Rb2
{[%clk 0:00:42.6]} 38. Kg3 {[%clk 0:00:42.3]} 38... b3 {[%clk 0:00:43.1]} 39.
Rc3 {[%clk 0:00:28.3]} 39... Bc2 {[%clk 0:00:39.2]} 40. Ra1 {[%clk 0:00:25.9]}
40... Ra8 {[%clk 0:00:12.8]} 41. a6 {[%clk 0:00:20.4]} 41... Ra2 {[%clk
0:00:05.5]} 42. Rxa2 {[%clk 0:00:19.5]} 42... bxa2 {[%clk 0:00:06.4]} 43. Ra3
{[%clk 0:00:19.5]} 43... Bb3 {[%clk 0:00:04.8]} 44. a7 {[%clk 0:00:18.9]} 44...
Bc4 {[%clk 0:00:03.7]} 45. Bb8 {[%clk 0:00:17.8]} 45... Kf8 {[%clk 0:00:03.9]}
46. Kf4 {[%clk 0:00:17.6]} 46... Ke7 {[%clk 0:00:04.2]} 47. Ke3 {[%clk
0:00:17.5]} 47... Kd7 {[%clk 0:00:04.5]} 48. f4 {[%clk 0:00:16.4]} 48... Kc8
{[%clk 0:00:03.2]} 49. f5 {[%clk 0:00:16.6]} 49... f6 {[%clk 0:00:03.1]} 50. Kf4
{[%clk 0:00:14.7]} 50... Rxb8 {[%clk 0:00:03.2]} 51. axb8=Q+ {[%clk 0:00:13.2]}
51... Kxb8 {[%clk 0:00:04.1]} 52. h4 {[%clk 0:00:13.1]} 52... Kb7 {[%clk
0:00:04.7]} 53. Ke3 {[%clk 0:00:10.4]} 53... Kb6 {[%clk 0:00:05]} 54. Kd2 {[%clk
0:00:10.5]} 54... c5 {[%clk 0:00:02.7]} 55. Kc3 {[%clk 0:00:09.9]} 55... Kb5
{[%clk 0:00:01.8]} 56. dxc5 {[%clk 0:00:09.2]} 56... Kxc5 {[%clk 0:00:02.4]} 57.
Ra5+ {[%clk 0:00:09.3]} 57... Kd6 {[%clk 0:00:02.4]} 58. Ra7 {[%clk 0:00:05.8]}
58... Ke5 {[%clk 0:00:02.4]} 59. Kb2 {[%clk 0:00:05.7]} 59... d4 {[%clk
0:00:02.7]} 60. Rxg7 {[%clk 0:00:04.7]} 60... d3 {[%clk 0:00:03.3]} 61. g5
{[%clk 0:00:04]} 61... hxg5 {[%clk 0:00:03]} 62. hxg5 {[%clk 0:00:04.4]} 62...
d2 {[%clk 0:00:03.5]} 63. Rd7 {[%clk 0:00:03.6]} 63... Bd5 {[%clk 0:00:03.9]}
0-1

[Event "Early-Titled-Tuesday-Blitz-May-07-2024"]
[Site "Chess.com"]
[Date "2024.05.07"]
[Round "8"]
[White "sudtirolese06"]
[Black "Skatchkov_V"]
[Result "0-1"]
[WhiteElo "2430"]
[BlackElo "2609"]
[TimeControl "180+1"]
[EndTime "9:36:01 PDT"]
[Termination "Skatchkov_V won by checkmate"]

1. d4 {[%clk 0:03:00]} 1... d5 {[%clk 0:02:44.4]} 2. Bf4 {[%clk 0:02:44.4]} 2...
Nf6 {[%clk 0:02:35.3]} 3. e3 {[%clk 0:02:44.3]} 3... c5 {[%clk 0:02:33.5]} 4.
dxc5 {[%clk 0:02:45.2]} 4... e6 {[%clk 0:02:31.2]} 5. b4 {[%clk 0:02:44.8]} 5...
a5 {[%clk 0:02:29.7]} 6. c3 {[%clk 0:02:44.9]} 6... b6 {[%clk 0:02:27.4]} 7.
Bxb8 {[%clk 0:02:43.8]} 7... Rxb8 {[%clk 0:02:16.2]} 8. Bb5+ {[%clk 0:02:44.3]}
8... Ke7 {[%clk 0:02:14.6]} 9. c6 {[%clk 0:02:44.8]} 9... Ne8 {[%clk 0:02:12.4]}
10. Ne2 {[%clk 0:02:37.2]} 10... Nd6 {[%clk 0:01:28.7]} 11. a4 {[%clk
0:02:28.4]} 11... g6 {[%clk 0:01:19.6]} 12. O-O {[%clk 0:02:27]} 12... Bg7
{[%clk 0:01:19.3]} 13. Nd2 {[%clk 0:02:11.6]} 13... axb4 {[%clk 0:01:15.4]} 14.
Rc1 {[%clk 0:02:10.9]} 14... bxc3 {[%clk 0:01:12.9]} 15. Nxc3 {[%clk 0:02:11.8]}
15... Qc7 {[%clk 0:01:11.3]} 16. Nb3 {[%clk 0:01:51.9]} 16... Rd8 {[%clk
0:01:08.1]} 17. Qf3 {[%clk 0:01:50.9]} 17... Kf8 {[%clk 0:01:03.4]} 18. Rfd1
{[%clk 0:01:37.8]} 18... Kg8 {[%clk 0:01:00.2]} 19. Nd4 {[%clk 0:01:31.2]} 19...
Ra8 {[%clk 0:00:56.4]} 20. Nb3 {[%clk 0:01:29.8]} 20... Ba6 {[%clk 0:00:55.2]}
21. Bxa6 {[%clk 0:01:02]} 21... Rxa6 {[%clk 0:00:56.1]} 22. Nb5 {[%clk
0:01:02.6]} 22... Nxb5 {[%clk 0:00:53]} 23. axb5 {[%clk 0:01:02.8]} 23... Ra3
{[%clk 0:00:52.1]} 24. Nd4 {[%clk 0:00:59.6]} 24... Ra5 {[%clk 0:00:46.8]} 25.
Qe2 {[%clk 0:00:56.3]} 25... Rda8 {[%clk 0:00:44.7]} 26. g3 {[%clk 0:00:49.6]}
26... h5 {[%clk 0:00:41.3]} 27. e4 {[%clk 0:00:48]} 27... Ra2 {[%clk 0:00:38]}
28. Qe1 {[%clk 0:00:46.2]} 28... R8a4 {[%clk 0:00:35]} 29. exd5 {[%clk
0:00:41.7]} 29... Rxd4 {[%clk 0:00:31.7]} 30. d6 {[%clk 0:00:12.1]} 30... Rxd6
{[%clk 0:00:17.5]} 31. Rxd6 {[%clk 0:00:13]} 31... Qxd6 {[%clk 0:00:18.4]} 32.
c7 {[%clk 0:00:13.6]} 32... Ra8 {[%clk 0:00:17.8]} 33. c8=Q+ {[%clk 0:00:13.3]}
33... Rxc8 {[%clk 0:00:18.1]} 34. Rxc8+ {[%clk 0:00:14.2]} 34... Kh7 {[%clk
0:00:19]} 35. Qe2 {[%clk 0:00:11.1]} 35... Bd4 {[%clk 0:00:18.9]} 36. Rc6 {[%clk
0:00:10.1]} 36... Qd5 {[%clk 0:00:17.9]} 37. h4 {[%clk 0:00:09.7]} 37... Kg7
{[%clk 0:00:16.3]} 38. Kh2 {[%clk 0:00:10]} 38... Qf5 {[%clk 0:00:16.2]} 39. Rc2
{[%clk 0:00:08.6]} 39... Bc5 {[%clk 0:00:16.1]} 40. Kg2 {[%clk 0:00:08.9]} 40...
Kh7 {[%clk 0:00:15.8]} 41. Rc4 {[%clk 0:00:08.4]} 41... Qd5+ {[%clk 0:00:15.7]}
42. Qe4 {[%clk 0:00:07.5]} 42... Qd7 {[%clk 0:00:16.4]} 43. Qf3 {[%clk
0:00:07.7]} 43... Kg8 {[%clk 0:00:15]} 44. Ra4 {[%clk 0:00:06.8]} 44... e5
{[%clk 0:00:06.5]} 45. Qf6 {[%clk 0:00:03.7]} 45... Qb7+ {[%clk 0:00:04.8]} 46.
Kh2 {[%clk 0:00:04.1]} 46... Bd4 {[%clk 0:00:04.9]} 47. Qc6 {[%clk 0:00:04.5]}
47... Qe7 {[%clk 0:00:04.2]} 48. Ra8+ {[%clk 0:00:05.1]} 48... Kg7 {[%clk
0:00:04.8]} 49. Qd5 {[%clk 0:00:05.4]} 49... Qf6 {[%clk 0:00:04.8]} 50. f4
{[%clk 0:00:04.3]} 50... exf4 {[%clk 0:00:04.3]} 51. gxf4 {[%clk 0:00:04.6]}
51... Qxf4+ {[%clk 0:00:04.4]} 52. Kg2 {[%clk 0:00:05.1]} 52... Qg4+ {[%clk
0:00:03.2]} 53. Kf1 {[%clk 0:00:04.4]} 53... Qd1+ {[%clk 0:00:03.6]} 54. Kg2
{[%clk 0:00:04.6]} 54... Qe2+ {[%clk 0:00:04.5]} 55. Kh3 {[%clk 0:00:04.4]}
55... Qf1+ {[%clk 0:00:05.2]} 56. Kg3 {[%clk 0:00:04]} 56... Bf2+ {[%clk
0:00:02.9]} 57. Kf3 {[%clk 0:00:04.5]} 57... Bc5+ {[%clk 0:00:02.6]} 58. Ke4
{[%clk 0:00:04.8]} 58... Qe2+ {[%clk 0:00:02.7]} 59. Kf4 {[%clk 0:00:04.7]}
59... Qf2+ {[%clk 0:00:02.7]} 60. Ke4 {[%clk 0:00:03.7]} 60... Qg2+ {[%clk
0:00:02.8]} 61. Ke5 {[%clk 0:00:04.2]} 61... Qg3+ {[%clk 0:00:03.4]} 62. Ke4
{[%clk 0:00:04.4]} 62... Qe3# {[%clk 0:00:03.4]} 0-1